Cogmind - Beta 13 @@@ ROGUE MODE // 2024.04.02 @ 00:50:22 Player: Crafthog Result: Self-destructed Performance ------------- Evolutions (2) 1000 Regions Visited (3) 600 Robots Destroyed (21) 105 Value Destroyed (191) 191 Prototype IDs (0) 0 Alien Tech Used (0) 0 Bonus (0) 0 TOTAL SCORE: 1896 Bonus ------- None Cogmind --------- Core Integrity 195/550 Matter 28/300 Energy 100/100 System Corruption 2% Temperature Cool (0) Movement Rolling (90) Location -8/Materials Parts ------- > --- POWER (1) -------- (None) > --- PROPULSION (4) --- Armored Wheel > --- UTILITY (4) ------ Small Storage Unit Advanced Visual Processing Unit > --- WEAPON (2) ------- (None) > --- INVENTORY (8) ---- Cesium-ion Thruster Heat Sink Advanced Visual Processing Unit Medium Laser Small Laser Assault Rifle Peak State ------------ > --- POWER ------------ Ion Engine > --- PROPULSION ------- Flight Unit Flight Unit Flight Unit > --- UTILITY ---------- Small Storage Unit Advanced Visual Processing Unit Improved Terrain Scanner > --- WEAPON ----------- (None) > --- INVENTORY -------- Ion Engine Armored Wheel Heat Sink Advanced Visual Processing Unit Medium Laser Small Laser Assault Rifle Light Assault Rifle [Rating: 12] Favorites ----------- Power Ion Engine Engine Ion Engine Propulsion Flight Unit Leg Aluminum Leg Wheel Armored Wheel Flight Unit Flight Unit Utility Small Storage Unit Device Improved Terrain Scanner Storage Small Storage Unit Processor Advanced Visual Processing Unit Weapon Assault Rifle Energy Gun Medium Laser Ballistic Gun Assault Rifle Ballistic Cannon Light Cannon Launcher Grenade Launcher Build | -11 -10 -9 -8 ------- Run | Yrd Mat Mat Mat Slots Evolved 4 | . . 2 2 Power . | . . . . Propulsion 2 | . . 1 1 Utility 2 | . . 1 1 Weapon . | . . . . Parts Attached 25 | 6 6 11 2 Power 3 | . 1 1 1 Engine 3 | . 1 1 1 Core . | . . . . Reactor . | . . . . Propulsion 7 | 2 . 4 1 Treads . | . . . . Leg 2 | 2 . . . Wheel 1 | . . . 1 Hover . | . . . . Flight 4 | . . 4 . Utility 3 | 2 . 1 . Device 1 | 1 . . . Storage 1 | 1 . . . Processor 1 | . . 1 . Hackware . | . . . . Protection . | . . . . Artifact . | . . . . Weapon 12 | 2 5 5 . Energy Gun 4 | 1 . 3 . Energy Cannon . | . . . . Ballistic Gun 2 | 1 . 1 . Ballistic Cannon 3 | . 3 . . Launcher 3 | . 2 1 . Special Weapon . | . . . . Impact Weapon . | . . . . Slashing Weapon . | . . . . Piercing Weapon . | . . . . Special Melee Weapon . | . . . . Unidentified Prototypes . | . . . . Parts Lost 9 | . . 3 6 Power 2 | . . . 2 Propulsion 4 | . . 1 3 Utility 1 | . . . 1 Weapon 2 | . . 2 . Highest Loss Streak 6 | . . 2 6 To Critical Strikes 1 | . . 1 . Average Slot Usage (%) 77 | . 99 75 49 Engine 10 | . 14 11 6 Leg 13 | . 28 10 . Flight 12 | . . 16 19 Device 10 | . 14 11 6 Storage 11 | . 14 11 9 Processor 2 | . . 1 9 Energy Gun 4 | . 7 3 . Ballistic Gun 6 | . 14 4 . Ballistic Cannon 2 | . 3 3 . Launcher 1 | . 2 1 . Naked Turns . | . . . . Heaviest Build 17 | 10 16 17 11 Greatest Support 20 | 20 20 20 12 Greatest Overweight (x) 3 | 1 . 3 2 Average Overweight (x) . | . . . . Largest Inventory Capacity 8 | 8 8 8 8 Average Capacity 7 | 6 8 8 8 Most Carried 8 | 5 5 8 8 Average Carried 4 | 2 3 4 7 Final Capacity 8 | 8 8 8 8 Final Carried 7 | 2 4 7 6 Class Distribution -------------------- 94% | Mutant 5% | Scavenger-Mutant Dominant Class ---------------- Mutant | -10/Materials Mutant | -9/Materials Mutant | -8/Materials Resources | -11 -10 -9 -8 ----------- Run | Yrd Mat Mat Mat Matter Collected 351 | 231 65 55 . Remotely . | . . . . Salvage Created 435 | 86 107 242 . Parts 43 | 4 15 24 . Haulers Intercepted 1 | . 1 . . Recyclers Shooed . | . . . . Parts Field Recycled . | . . . . Retrieved Matter . | . . . . Parts Self-Destructed . | . . . . Prevented . | . . . . Kills | -11 -10 -9 -8 ------- Run | Yrd Mat Mat Mat Combat Hostiles Destroyed 8 | . 3 5 . Guns 3 | . . 3 . AOE 5 | . 3 2 . Classes Destroyed 8 | 2 5 1 . Worker 3 | . 1 2 . Builder 3 | . 1 2 . Tunneler 1 | 1 . . . Hauler 1 | . 1 . . Recycler 2 | 1 . 1 . Watcher 3 | . 2 1 . Swarmer 7 | . 3 4 . Grunt 1 | . . 1 . Best Kill Streak 7 | 2 4 7 . Combat Bots Only 3 | . 3 2 . Max Kills in Single Turn 4 | 1 2 4 . Gunslinging . | . . . . Exploded 2 | . 2 1 . Melee . | . . . . Uniques/NPCs Destroyed . | . . . . Combat | -11 -10 -9 -8 -------- Run | Yrd Mat Mat Mat Hostile Shots Fired 165 | . 13 94 58 Missed 61 | . 6 35 20 Damage Taken 1286 | . 104 581 601 Core 578 | . 51 172 355 Absorbed by Shields . | . . . . Core Remaining (%) 78 | 100 79 57 . Volleys Fired 50 | 3 15 32 . Largest 2 | 2 2 2 . Hottest 90 | 70 70 90 . Shots Fired 79 | 6 29 44 . Gun 55 | 6 19 30 . Cannon 17 | . 5 12 . Launcher 7 | . 5 2 . Special . | . . . . Kinetic 48 | 3 20 25 . Thermal 24 | 3 4 17 . Explosive 7 | . 5 2 . Electromagnetic . | . . . . Robot Hit Streak 5 | 3 3 5 . Robot Miss Streak 6 | 1 3 6 . Penetration Max . | . . . . Secondary Targets . | . . . . Shots Hit Robots 28 | 3 11 14 . Core Hits 32 | 3 13 14 2 Critical Kills . | . . . . Critical Parts Destroyed . | . . . . Critical Strikes . | . . . . Melee Attacks . | . . . . Impact . | . . . . Slashing . | . . . . Piercing . | . . . . Sneak Attacks . | . . . . Combat Hostiles . | . . . . Follow-up Attacks . | . . . . Damage Inflicted 1017 | 37 441 529 10 Guns 300 | 37 97 166 . Cannons 89 | . 31 58 . Explosions 618 | . 313 305 . Melee . | . . . . Ramming 10 | . . . 10 Kinetic 209 | 13 103 93 . Thermal 180 | 24 25 131 . Explosive 618 | . 313 305 . Electromagnetic . | . . . . Impact . | . . . . Slashing . | . . . . Piercing . | . . . . Highest Corruption 2 | . . . 2 Average Corruption 2 | . . . 2 Corruption Purged . | . . . . Corruption Blocked . | . . . . Overload Shots . | . . . . Overflow Damage 35 | . 35 . . Projectiles . | . . . . Explosions 35 | . 35 . . Melee . | . . . . Knockbacks 1 | . . 1 . Impact . | . . . . Kinetic 1 | . . 1 . Secondary . | . . . . Self-Inflicted Damage 44 | . 40 . 4 Shots 1 | . 1 . . Rammed 3 | . . . 3 Targets Rammed 3 | . . . 3 Kicked . | . . . . Crushed . | . . . . Highest Temperature 120 | . 18 120 10 Average Temperature 30 | . 8 39 6 Received Heat Transfer 438 | . 18 69 351 Siege Activations . | . . . . Robots Corrupted . | . . . . Combat Hostiles . | . . . . Parts Fried . | . . . . Impact Corruptions . | . . . . Robots Melted . | . . . . Combat Hostiles . | . . . . Parts Melted . | . . . . Heat Transferred 495 | 74 74 347 . Parts Sabotaged . | . . . . Parts Stolen . | . . . . Parts Stripped . | . . . . Power Chain Reactions . | . . . . Alert | -11 -10 -9 -8 ------- Run | Yrd Mat Mat Mat Peak Influence 357 | 10 134 357 219 Initial 76 | . 6 56 76 Average 132 | 6 53 193 147 Maximum Alert Level 1 | . . 1 1 Low Security (%) 70 | 100 100 43 87 Level 1 29 | . . 56 12 Level 2 . | . . . . Level 3 . | . . . . Level 4 . | . . . . Level 5 . | . . . . High Security . | . . . . Max Security . | . . . . Squads Dispatched 5 | . 1 2 2 Investigation 3 | . 1 1 1 Extermination . | . . . . Reinforcement 2 | . . 1 1 Assault . | . . . . Garrison . | . . . . Intercept . | . . . . Searches Triggered . | . . . . Construction Impeded . | . . . . Haulers Reinforced . | . . . . Active Scanning Responses . | . . . . Cargo Convoy Interrupts . | . . . . Stealth | -11 -10 -9 -8 --------- Run | Yrd Mat Mat Mat Distress Signals 6 | . . 3 3 Communications Jammed . | . . . . Distress Signals . | . . . . Times Spotted 48 | . 8 21 19 Peak Tracking Total 14 | . 4 7 14 Tactical Retreats 6 | . . 3 3 Traps | -11 -10 -9 -8 ------- Run | Yrd Mat Mat Mat Traps Triggered 2 | . 1 . 1 Indirectly . | . . . . Trap Hack Attempts . | . . . . Triggered . | . . . . Disarmed . | . . . . Reprogrammed . | . . . . Reused . | . . . . Traps Extracted . | . . . . Installed . | . . . . Triggered . | . . . . Machines | -11 -10 -9 -8 ---------- Run | Yrd Mat Mat Mat Machines Disabled . | . . . . Max in Single Turn . | . . . . Machines Repaired . | . . . . Machines Dismantled . | . . . . Machines Sabotaged . | . . . . Overloaded Fab Kills . | . . . . Hacking | -11 -10 -9 -8 --------- Run | Yrd Mat Mat Mat Machines Accessed 6 | . 2 2 2 Terminals 6 | . 2 2 2 Fabricators . | . . . . Repair Stations . | . . . . Recycling Units . | . . . . Scanalyzers . | . . . . Garrison Access . | . . . . Total Hacks 15 | . 6 5 4 Successful 7 | . 3 2 2 Failed 8 | . 3 3 2 Catastrophic 4 | . 1 2 1 Database Lockouts . | . . . . Manual 10 | . 3 4 3 Terminals 15 | . 6 5 4 Fabricators . | . . . . Repair Stations . | . . . . Recycling Units . | . . . . Scanalyzers . | . . . . Garrison Access . | . . . . Terminal Hacks 7 | . 3 2 2 Record 3 | . 1 1 1 Branch Access Points 2 | . . 1 1 Transport Status 1 | . 1 . . Hauler Manifests 1 | . 1 . . Fabricator Hacks . | . . . . Repair Station Hacks . | . . . . Recycling Unit Hacks . | . . . . Scanalyzer . | . . . . Garrison Access Hacks . | . . . . Unauthorized Hacks . | . . . . Terminals . | . . . . Fabricators . | . . . . Repair Stations . | . . . . Recycling Units . | . . . . Scanalyzers . | . . . . Garrison Access . | . . . . Data Cores Recovered . | . . . . Used . | . . . . Hacking Detections 5 | . 2 2 1 Full Trace Events 3 | . 1 1 1 Feedback Events . | . . . . Feedback Blocked . | . . . . Robot Schematics Acquired . | . . . . Robots Built . | . . . . Authchips . | . . . . Time . | . . . . Total Robot Build Rating . | . . . . Part Schematics Acquired . | . . . . Parts Built . | . . . . Authchips . | . . . . Time . | . . . . Total Part Build Rating . | . . . . Parts Repaired . | . . . . Time . | . . . . Parts Recycled . | . . . . Recycled Matter . | . . . . Retrieved Matter . | . . . . Retrieved Components . | . . . . Parts Scanalyzed . | . . . . Part Schematics Acquired . | . . . . Parts Damaged . | . . . . Bothacking | -11 -10 -9 -8 ------------ Run | Yrd Mat Mat Mat Used RIF Installer . | . . . . Robots Hacked . | . . . . Non-combat . | . . . . Combat . | . . . . Robot Hacks Applied . | . . . . Relay Couplers Released . | . . . . Fabnet Peak Effective % . | . . . . Robots Rewired . | . . . . Allies Hacked . | . . . . Hacks Repelled . | . . . . Allies | -11 -10 -9 -8 -------- Run | Yrd Mat Mat Mat Total Allies . | . . . . Largest Group . | . . . . Highest-Rated Group . | . . . . Highest-Rated Ally . | . . . . Total Orders . | . . . . Ally Attacks . | . . . . Total Damage . | . . . . Kills . | . . . . Allies Corrupted . | . . . . Allies Melted . | . . . . Intel | -11 -10 -9 -8 ------- Run | Yrd Mat Mat Mat Robot Analysis Total . | . . . . Derelict Logs Recovered . | . . . . Drone Launches . | . . . . Drone Recoveries . | . . . . Exploration | -11 -10 -9 -8 ------------- Run | Yrd Mat Mat Mat Turns Passed 863 | 70 228 411 154 Spaces Moved 950 | 51 144 406 349 Core 48 | 25 . . 23 Treads . | . . . . Legs 269 | 26 144 99 . Wheels 14 | . . . 14 Hover . | . . . . Flight 619 | . . 307 312 Fastest Speed 34 | 50 120 34 34 Average Speed 69 | 93 120 71 41 Slowest Speed 290 | 120 120 290 200 Overloaded Moves . | . . . . Propulsion Burnouts . | . . . . Robots Hopped 9 | . . 1 8 Cave-ins Triggered . | . . . . Exploration Rate (%) 25 | 4 39 33 27 Regions Visited 3 Branch Regions . Pre-discovered Areas . | . . . . Known Exits Taken . | . . . . Unknown Exits Taken 3 | 1 1 1 . Scrap Searched . | . . . . Spaces Dug . | . . . . Terrain Destroyed 45 | . 24 21 . Melee . | . . . . Projectile . | . . . . AOE 45 | . 24 21 . Terrain Rammed . | . . . . Walls Destroyed . | . . . . Machines Disabled . | . . . . Actions | -11 -10 -9 -8 --------- Run | Yrd Mat Mat Mat Total 1066 | 67 168 482 349 Wait 19 | . . 19 . Move 929 | 50 143 403 333 Hop 9 | . . 1 8 Pick Up 23 | 8 4 9 2 Fast Attach . | . . . . Attach 17 | 6 2 7 2 Detach 4 | . . 4 . Swap 8 | . 4 4 . Drop 4 | . . 3 1 Fire 50 | 3 15 32 . Melee . | . . . . Ram 3 | . . . 3 Kick . | . . . . Crush . | . . . . Escape Stasis . | . . . . Rewire . | . . . . Trap . | . . . . Miscellaneous . | . . . . Route ------- -11/Scrapyard -10/Materials (discovered 2 exits: *Mat / [*Min]) -9/Materials (discovered 2 exits: *Mat / Min) -8/Materials (discovered 1 exit: Sto) History --------- Turn | Location | Event 12 | -11/Scrapyard | Discovered new exit (range 16) 71 | -11/Scrapyard | Entered Materials 168 | -10/Materials | Discovered new exit (range 12) 273 | -10/Materials | Discovered new exit (range 15) 299 | -10/Materials | Entered another Materials area 299 | -9/Materials | Evolved 2 slots: Propulsion x1, Utility x1 310 | -9/Materials | Build established: Mutant 704 | -9/Materials | Discovered new exit (range 16) 705 | -9/Materials | Identified exit to Mines 710 | -9/Materials | Entered another Materials area 710 | -8/Materials | Evolved 2 slots: Propulsion x1, Utility x1 790 | -8/Materials | Identified exit to Storage 833 | -8/Materials | Core integrity fell below 50% 855 | -8/Materials | Lost 6 parts (2p3n1u) 864 | -8/Materials | Self-destructed Last Messages --------------- >>Access(Branch) Found 1 branch access point: (28,89) Storage Map updated. W-25 Informer sends out distress signal. K-01 Serf collects debris. Flight Unit destroyed. Ion Engine destroyed. Imp. Terrain Scanner destroyed. K-01 Serf collects debris. Critical hit (Burn: +37). Flight Unit destroyed. Ion Engine destroyed. Material Processor disabled. Flight Unit destroyed. Critical hit (Burn: +37). Slammed into R-06 Scavenger. K-01 Serf collects debris. Slammed into K-01 Serf. S-10 Pest destroyed. Map ----- +----------------------------------------------------+ | ????# """ # ! ##+############???????? | | ????# """ # ???? | | ????# + ???? | | ????#! """ # ???? | | ????# """ ### #########T###############?????? | | ????# """ !*#?# #????????##?????????#?????????? | | ????# !*###/######??##########????????????? | | ????##########[ #??# ^ #????????????? | | ????????????## """ #### """"" #????????? ??? | | ?????????????# """ # + """"" #????????????? | | ?????????#???# """ # # """"" #??????#?????? | | ?????????????# # # """"" #????????????? | | ?????????????# + # """"" #????????????? | | ?????????????# "Y" # #^""""" #????????????? | | ???????+?????+ """ # + """"" [#????????????? | | ???????# ?# # # #????????????? | | ???????# ######g### ####+#######??????????? | | ???????+ =%[ g r +???????? ?? | | ????????# g ##???????????????? | | ????????# s #????????????????? | | ????????# """% """ #??????????? ????? | | ????????# " " """[ """ #????????????????? | | ???????# "G" """ """ ##???????????????? | | ???????+ """ a#????????????????? | | ???????# #????????????????? | | ???????# @ #?? ?????????????? | | ???????## ################ ##????????????????? | | ????????# ???????????????? #?????????????????? | | ????????+ ?????????????????? #?????????????????? | | ????????#??????????????????? #?????????????????? | | ?????????????????????????????#?????????????????? | | ???????????????????????????????????????????????? | | ???????????????????????????????????????????????? | | ???????????????????????????????????????????????? | | ????????????????????????????H??????????????????? | | ???????????????????????????????????????????????? | | ???????????????????????????????????????????????? | | ???????????????????????????????????????????????? | | ???????????????????????????????????????????????? | | ???????????????????????????????????????????????? | | ???????????????????????????????????????????????? | | ???????????????????????????????????????????????? | | ???????????????????????????????????????????????? | | ???????????????????????????????????????????????? | | ???????????????????????????????????????????????? | | | | | | | | | | | +----------------------------------------------------+ Best States ------------- Heat Dissipation 31 Energy Generation 10 Energy Capacity 250 Matter Stores 262 Matter Capacity 300 Sight Range 20 Terrain Scan Range 16 Terrain Scan Density 10 Evasion (%) 63 Item Schematics ----------------- None Robot Schematics ------------------ None Fabricated ------------ Nothing Alien Tech Used ----------------- None Achievements -------------- None Challenges ------------ None Game ------ Seed FlakParticleLegs Manual? 0 Play Time 00:17:47 Cumulative 2.0 hours Start 2024.04.02 @ 00:31:32 End 2024.04.02 @ 00:50:22 Sessions 1 Manual Loads 0 Difficulty Rogue Special Mode None Game No. 5 Rogue 5 Adventurer 0 Explorer 0 Win Type - Total 0 Types 0/0/0/0/0/0/0/0/0 Lore% 2 Gallery% 5 Achievement% 6 Wizard Run 0 Options --------- Layout 1 ASCII 0 Keyboard 0 Movement Arrows Keybinds 0 Fullscreen 1 Font 24/Smallcaps Map View 76x35 Zoom Use 0% Tactical HUD 0 Map Filters NONE Filters NONE Steam 1 RUN: 5af4635d-cddc-4b1b-93c2-310f5459896a